[Event "Early-Titled-Tuesday-Blitz-May-28-2024"]
[Site "Chess.com"]
[Date "2024.05.28"]
[Round "6"]
[White "ImportedItalianMaple"]
[Black "ploxoi"]
[Result "0-1"]
[WhiteElo "2524"]
[BlackElo "2383"]
[TimeControl "180+1"]
[EndTime "9:07:33 PDT"]
[Termination "ploxoi won on time"]

1. e4 {[%clk 0:02:56.4]} 1... c5 {[%clk 0:02:59.2]} 2. Nf3 {[%clk 0:02:56.9]}
2... e6 {[%clk 0:02:58.9]} 3. g3 {[%clk 0:02:56.7]} 3... Nc6 {[%clk 0:02:59.1]}
4. Bg2 {[%clk 0:02:56.8]} 4... d5 {[%clk 0:02:59.8]} 5. exd5 {[%clk 0:02:56.8]}
5... Qxd5 {[%clk 0:02:59.3]} 6. O-O {[%clk 0:02:25.2]} 6... Nge7 {[%clk
0:02:57.7]} 7. c4 {[%clk 0:02:16.6]} 7... Qd8 {[%clk 0:02:52.2]} 8. b4 {[%clk
0:02:04.5]} 8... Nxb4 {[%clk 0:02:42.4]} 9. d4 {[%clk 0:02:04.7]} 9... cxd4
{[%clk 0:02:38.7]} 10. Ba3 {[%clk 0:02:04.2]} 10... Nbc6 {[%clk 0:02:38.3]} 11.
Re1 {[%clk 0:02:00.4]} 11... Bd7 {[%clk 0:02:29.9]} 12. Nbd2 {[%clk 0:01:59.9]}
12... Qa5 {[%clk 0:02:28.2]} 13. Qb3 {[%clk 0:01:57.2]} 13... g6 {[%clk
0:02:20.4]} 14. Ne4 {[%clk 0:01:56.5]} 14... Ng8 {[%clk 0:02:07.9]} 15. Bxf8
{[%clk 0:01:34]} 15... Kxf8 {[%clk 0:02:08.8]} 16. Qxb7 {[%clk 0:01:34.4]} 16...
Rd8 {[%clk 0:02:08.4]} 17. Nd6 {[%clk 0:01:15.6]} 17... Nf6 {[%clk 0:01:53.4]}
18. Qb3 {[%clk 0:00:31.5]} 18... Kg7 {[%clk 0:01:50.8]} 19. Nb7 {[%clk
0:00:31.6]} 19... Qc7 {[%clk 0:01:44.2]} 20. Nxd8 {[%clk 0:00:32]} 20... Rxd8
{[%clk 0:01:45.1]} 21. c5 {[%clk 0:00:31.6]} 21... e5 {[%clk 0:01:44.1]} 22.
Rac1 {[%clk 0:00:28.1]} 22... Be6 {[%clk 0:01:42.6]} 23. Qa4 {[%clk 0:00:26.8]}
23... Nd5 {[%clk 0:01:40.1]} 24. Ng5 {[%clk 0:00:19.5]} 24... Bf5 {[%clk
0:01:29]} 25. a3 {[%clk 0:00:15.5]} 25... h6 {[%clk 0:01:20.2]} 26. Ne4 {[%clk
0:00:15.9]} 26... Bxe4 {[%clk 0:01:20.3]} 27. Bxe4 {[%clk 0:00:16.8]} 27... f5
{[%clk 0:01:17.1]} 28. Bg2 {[%clk 0:00:16.5]} 28... e4 {[%clk 0:01:15.9]} 29.
Qc4 {[%clk 0:00:14.5]} 29... d3 {[%clk 0:01:08.8]} 30. Red1 {[%clk 0:00:15.1]}
30... Qe5 {[%clk 0:00:58.1]} 31. Rb1 {[%clk 0:00:15.5]} 31... Rd7 {[%clk
0:00:44.6]} 32. Rb3 {[%clk 0:00:13.2]} 32... Rc7 {[%clk 0:00:40.5]} 33. Qa4
{[%clk 0:00:12]} 33... Nc3 {[%clk 0:00:38.7]} 34. Rxc3 {[%clk 0:00:11.9]} 34...
Qxc3 {[%clk 0:00:39.6]} 35. Qb5 {[%clk 0:00:10.5]} 35... Nd4 {[%clk 0:00:32.7]}
36. Qb8 {[%clk 0:00:09.7]} 36... Ne2+ {[%clk 0:00:30.2]} 37. Kf1 {[%clk
0:00:09.9]} 37... Qxc5 {[%clk 0:00:30.4]} 38. Qb2+ {[%clk 0:00:08.4]} 38... Qc3
{[%clk 0:00:30.7]} 39. Qb5 {[%clk 0:00:08.1]} 39... Kh7 {[%clk 0:00:25.9]} 40.
g4 {[%clk 0:00:08.6]} 40... Qc2 {[%clk 0:00:25.5]} 41. Re1 {[%clk 0:00:07.4]}
41... d2 {[%clk 0:00:25.1]} 42. Qxe2 {[%clk 0:00:07.4]} 42... dxe1=Q+ {[%clk
0:00:25.3]} 43. Qxe1 {[%clk 0:00:07.8]} 43... Qc1 {[%clk 0:00:25.8]} 44. gxf5
{[%clk 0:00:08.4]} 44... gxf5 {[%clk 0:00:26]} 45. Bh3 {[%clk 0:00:08.7]} 45...
Kg6 {[%clk 0:00:26.2]} 0-1

[Event "Early-Titled-Tuesday-Blitz-May-28-2024"]
[Site "Chess.com"]
[Date "2024.05.28"]
[Round "6"]
[White "Actuary44"]
[Black "ozates"]
[Result "1/2-1/2"]
[WhiteElo "2478"]
[BlackElo "2637"]
[TimeControl "180+1"]
[EndTime "9:07:35 PDT"]
[Termination "Game drawn by repetition"]

1. e4 {[%clk 0:03:00.9]} 1... c5 {[%clk 0:02:59.1]} 2. d4 {[%clk 0:03:01]} 2...
cxd4 {[%clk 0:02:58.7]} 3. c3 {[%clk 0:03:01.6]} 3... d3 {[%clk 0:02:56]} 4.
Bxd3 {[%clk 0:03:01.4]} 4... Nc6 {[%clk 0:02:56.9]} 5. f4 {[%clk 0:03:01.6]}
5... g6 {[%clk 0:02:57.3]} 6. Nf3 {[%clk 0:03:02]} 6... Bg7 {[%clk 0:02:57.8]}
7. O-O {[%clk 0:03:02.6]} 7... d6 {[%clk 0:02:56.2]} 8. Kh1 {[%clk 0:03:03]}
8... Nf6 {[%clk 0:02:55.4]} 9. Qe1 {[%clk 0:03:03.4]} 9... O-O {[%clk 0:02:55]}
10. Be3 {[%clk 0:03:03.5]} 10... d5 {[%clk 0:02:51.7]} 11. e5 {[%clk 0:03:03.1]}
11... Ne4 {[%clk 0:02:38.2]} 12. Nbd2 {[%clk 0:02:53]} 12... Nxd2 {[%clk
0:02:36.3]} 13. Bxd2 {[%clk 0:02:51]} 13... Bg4 {[%clk 0:02:29.2]} 14. Rd1
{[%clk 0:02:37.4]} 14... Bxf3 {[%clk 0:02:27.4]} 15. Rxf3 {[%clk 0:02:36.9]}
15... e6 {[%clk 0:02:27.6]} 16. Be3 {[%clk 0:02:30]} 16... f6 {[%clk 0:02:26.6]}
17. Bc5 {[%clk 0:02:22.3]} 17... Re8 {[%clk 0:02:25.7]} 18. exf6 {[%clk
0:02:18.9]} 18... Qxf6 {[%clk 0:02:26.6]} 19. Bb5 {[%clk 0:02:06.1]} 19... Rad8
{[%clk 0:02:09.7]} 20. Bxc6 {[%clk 0:02:01.8]} 20... bxc6 {[%clk 0:02:09.6]} 21.
Bxa7 {[%clk 0:02:01.8]} 21... e5 {[%clk 0:02:00.6]} 22. fxe5 {[%clk 0:01:58.3]}
22... Qe7 {[%clk 0:01:59.9]} 23. Qe3 {[%clk 0:01:44.3]} 23... Bxe5 {[%clk
0:01:55.2]} 24. Re1 {[%clk 0:01:22.4]} 24... Qd7 {[%clk 0:01:03.3]} 25. Qf2
{[%clk 0:01:02.9]} 25... Bg7 {[%clk 0:00:49.7]} 26. Rfe3 {[%clk 0:00:30.1]}
26... Rf8 {[%clk 0:00:43.2]} 27. Re7 {[%clk 0:00:30.1]} 27... Qg4 {[%clk
0:00:18]} 28. Qe2 {[%clk 0:00:13.5]} 28... Qxe2 {[%clk 0:00:13.3]} 29. R7xe2
{[%clk 0:00:14.4]} 29... Ra8 {[%clk 0:00:11.8]} 30. Re7 {[%clk 0:00:14.2]} 30...
Bf6 {[%clk 0:00:11.2]} 31. Rc7 {[%clk 0:00:14]} 31... Bd8 {[%clk 0:00:10.2]} 32.
Rd7 {[%clk 0:00:13.6]} 32... Bh4 {[%clk 0:00:10.1]} 33. g3 {[%clk 0:00:13.3]}
33... Bf6 {[%clk 0:00:10]} 34. Rc7 {[%clk 0:00:12.3]} 34... Bd8 {[%clk
0:00:09.2]} 35. Rd7 {[%clk 0:00:12.4]} 35... Bf6 {[%clk 0:00:09.3]} 36. Bc5
{[%clk 0:00:12.2]} 36... Rfb8 {[%clk 0:00:08.8]} 37. Ba3 {[%clk 0:00:10.1]}
37... Bxc3 {[%clk 0:00:07.3]} 38. bxc3 {[%clk 0:00:08.5]} 38... Rxa3 {[%clk
0:00:07.5]} 39. Ree7 {[%clk 0:00:08.3]} 39... Rxa2 {[%clk 0:00:07.9]} 40. Rg7+
{[%clk 0:00:06.9]} 40... Kf8 {[%clk 0:00:08.4]} 41. Rgf7+ {[%clk 0:00:05.4]}
41... Ke8 {[%clk 0:00:08.8]} 42. Rfe7+ {[%clk 0:00:04]} 42... Kf8 {[%clk
0:00:09.3]} 43. Rf7+ {[%clk 0:00:04.5]} 43... Ke8 {[%clk 0:00:09.8]} 44. Rfe7+
{[%clk 0:00:05]} 44... Kf8 {[%clk 0:00:10.3]} 45. Rf7+ {[%clk 0:00:05.6]}
1/2-1/2

[Event "Early-Titled-Tuesday-Blitz-May-28-2024"]
[Site "Chess.com"]
[Date "2024.05.28"]
[Round "6"]
[White "KnightDuta"]
[Black "Nitzan_Steinberg"]
[Result "0-1"]
[WhiteElo "2722"]
[BlackElo "2905"]
[TimeControl "180+1"]
[EndTime "9:07:36 PDT"]
[Termination "Nitzan_Steinberg won by resignation"]

1. e4 {[%clk 0:03:00.9]} 1... c5 {[%clk 0:02:59.3]} 2. Nf3 {[%clk 0:03:01.2]}
2... d6 {[%clk 0:02:59.1]} 3. d4 {[%clk 0:03:01.5]} 3... cxd4 {[%clk 0:02:59.5]}
4. Nxd4 {[%clk 0:03:02.3]} 4... Nf6 {[%clk 0:03:00.1]} 5. Nc3 {[%clk 0:03:02.7]}
5... a6 {[%clk 0:03:00.4]} 6. f3 {[%clk 0:03:01.4]} 6... e6 {[%clk 0:02:59.9]}
7. Be3 {[%clk 0:03:01.2]} 7... b5 {[%clk 0:02:59.9]} 8. Qe2 {[%clk 0:02:56.2]}
8... Bb7 {[%clk 0:02:59.7]} 9. g4 {[%clk 0:02:56.2]} 9... Nfd7 {[%clk
0:02:53.3]} 10. O-O-O {[%clk 0:02:44.1]} 10... Be7 {[%clk 0:02:50.7]} 11. a3
{[%clk 0:02:20.7]} 11... Ne5 {[%clk 0:02:46.9]} 12. Qf2 {[%clk 0:02:10.1]} 12...
Nbd7 {[%clk 0:02:44.7]} 13. h4 {[%clk 0:02:09.2]} 13... Rc8 {[%clk 0:02:44.2]}
14. g5 {[%clk 0:02:01.1]} 14... Rxc3 {[%clk 0:02:44]} 15. bxc3 {[%clk 0:02:02]}
15... Qa5 {[%clk 0:02:37.8]} 16. Kb2 {[%clk 0:02:00.5]} 16... d5 {[%clk
0:02:36.3]} 17. Ra1 {[%clk 0:01:59.9]} 17... Nb6 {[%clk 0:02:35.5]} 18. Nb3
{[%clk 0:01:25.9]} 18... Na4+ {[%clk 0:02:33.8]} 19. Kc1 {[%clk 0:01:10]} 19...
Qxc3 {[%clk 0:02:13.2]} 20. Bd4 {[%clk 0:01:08.4]} 20... Qc7 {[%clk 0:02:13.2]}
21. f4 {[%clk 0:00:43.7]} 21... Nc4 {[%clk 0:02:11.8]} 22. Bxg7 {[%clk
0:00:41.8]} 22... Rg8 {[%clk 0:02:11.5]} 23. Bd4 {[%clk 0:00:32]} 23... dxe4
{[%clk 0:02:11.6]} 24. Bxc4 {[%clk 0:00:25.7]} 24... bxc4 {[%clk 0:02:04]} 25.
Be5 {[%clk 0:00:25.2]} 25... Qc8 {[%clk 0:01:59.2]} 26. Qd4 {[%clk 0:00:12]}
26... Bd5 {[%clk 0:01:44.7]} 27. Re1 {[%clk 0:00:04.7]} 27... Qd7 {[%clk
0:01:13.5]} 28. Rxe4 {[%clk 0:00:02.8]} 28... Bxe4 {[%clk 0:01:12.8]} 29. Qxe4
{[%clk 0:00:02.7]} 29... cxb3 {[%clk 0:01:12.9]} 30. cxb3 {[%clk 0:00:02.2]}
30... Nc5 {[%clk 0:01:12.7]} 31. Qa8+ {[%clk 0:00:02.9]} 31... Qd8 {[%clk
0:00:58.8]} 32. Qxd8+ {[%clk 0:00:02.3]} 32... Kxd8 {[%clk 0:00:57.7]} 33. Kc2
{[%clk 0:00:03.2]} 33... Kd7 {[%clk 0:00:55]} 34. Rd1+ {[%clk 0:00:03.4]} 34...
Kc6 {[%clk 0:00:55.7]} 35. b4 {[%clk 0:00:03.7]} 35... Nd7 {[%clk 0:00:56.4]}
36. Bb2 {[%clk 0:00:02.4]} 36... Rc8 {[%clk 0:00:56.8]} 37. Kb3 {[%clk
0:00:02.8]} 37... Nb6 {[%clk 0:00:55.1]} 38. a4 {[%clk 0:00:03.3]} 38... Nd5
{[%clk 0:00:55]} 39. Ba3 {[%clk 0:00:02.1]} 39... Rb8 {[%clk 0:00:52.9]} 40. Rd4
{[%clk 0:00:01.7]} 40... Bxb4 {[%clk 0:00:48.2]} 41. Rc4+ {[%clk 0:00:02]} 41...
Kd7 {[%clk 0:00:44.9]} 42. Bxb4 {[%clk 0:00:01]} 42... a5 {[%clk 0:00:45.3]} 43.
Rc5 {[%clk 0:00:01.5]} 43... Rxb4+ {[%clk 0:00:44]} 44. Ka3 {[%clk 0:00:02.2]}
44... Rxf4 {[%clk 0:00:44]} 45. Rxa5 {[%clk 0:00:03.1]} 45... Rxh4 {[%clk
0:00:44]} 46. Ra7+ {[%clk 0:00:03.6]} 46... Nc7 {[%clk 0:00:40.3]} 47. Rb7
{[%clk 0:00:03.7]} 47... Rg4 {[%clk 0:00:39.3]} 48. a5 {[%clk 0:00:04.3]} 48...
Rxg5 {[%clk 0:00:39.5]} 49. Kb4 {[%clk 0:00:04.4]} 49... Kc8 {[%clk 0:00:38.2]}
50. Rb6 {[%clk 0:00:04.3]} 50... Nd5+ {[%clk 0:00:38.5]} 51. Kc5 {[%clk
0:00:05]} 51... Nxb6+ {[%clk 0:00:39.4]} 52. Kxb6 {[%clk 0:00:05.9]} 52... Rxa5
{[%clk 0:00:39.1]} 53. Kc6 {[%clk 0:00:06.2]} 53... Rd5 {[%clk 0:00:38.1]} 0-1

[Event "Early-Titled-Tuesday-Blitz-May-28-2024"]
[Site "Chess.com"]
[Date "2024.05.28"]
[Round "6"]
[White "Jospem"]
[Black "Durarbayli"]
[Result "0-1"]
[WhiteElo "3023"]
[BlackElo "2916"]
[TimeControl "180+1"]
[EndTime "9:07:38 PDT"]
[Termination "Durarbayli won by checkmate"]

1. e4 {[%clk 0:03:00.9]} 1... e5 {[%clk 0:03:00.7]} 2. Nc3 {[%clk 0:02:59.4]}
2... Nc6 {[%clk 0:03:01.3]} 3. Nf3 {[%clk 0:03:00]} 3... Nf6 {[%clk 0:03:00.4]}
4. g3 {[%clk 0:03:00.2]} 4... Bc5 {[%clk 0:02:54.6]} 5. Bg2 {[%clk 0:03:00.1]}
5... d6 {[%clk 0:02:53.9]} 6. d3 {[%clk 0:03:00.2]} 6... a6 {[%clk 0:02:53.3]}
7. h3 {[%clk 0:02:59]} 7... h6 {[%clk 0:02:52.1]} 8. Be3 {[%clk 0:02:57.5]} 8...
Bxe3 {[%clk 0:02:42.8]} 9. fxe3 {[%clk 0:02:58.4]} 9... Ne7 {[%clk 0:02:42.7]}
10. O-O {[%clk 0:02:58]} 10... Ng6 {[%clk 0:02:42.7]} 11. Qe1 {[%clk 0:02:51.8]}
11... Be6 {[%clk 0:02:38]} 12. Kh2 {[%clk 0:02:48.2]} 12... O-O {[%clk
0:02:30.6]} 13. Rd1 {[%clk 0:02:36]} 13... b5 {[%clk 0:02:25.8]} 14. Ne2 {[%clk
0:02:28.4]} 14... a5 {[%clk 0:02:21.6]} 15. g4 {[%clk 0:02:28.6]} 15... Bxg4
{[%clk 0:02:05.6]} 16. hxg4 {[%clk 0:02:20.2]} 16... Nxg4+ {[%clk 0:02:06.5]}
17. Kg1 {[%clk 0:02:21.1]} 17... Nxe3 {[%clk 0:02:06.7]} 18. Qg3 {[%clk
0:02:21.8]} 18... Kh7 {[%clk 0:01:52.6]} 19. Bh3 {[%clk 0:02:20.9]} 19... Nxd1
{[%clk 0:01:35.2]} 20. Rxd1 {[%clk 0:02:21.8]} 20... d5 {[%clk 0:01:25.7]} 21.
Bf5 {[%clk 0:01:55.8]} 21... dxe4 {[%clk 0:01:25.8]} 22. Bxe4 {[%clk 0:01:52.3]}
22... Ra6 {[%clk 0:01:23.5]} 23. Qg4 {[%clk 0:01:39.1]} 23... Kh8 {[%clk
0:01:06.7]} 24. Kh1 {[%clk 0:01:37.4]} 24... Rf6 {[%clk 0:00:30]} 25. Rg1 {[%clk
0:01:34.8]} 25... Qe7 {[%clk 0:00:28.2]} 26. Nh4 {[%clk 0:01:20.5]} 26... Kg8
{[%clk 0:00:03.6]} 27. Nf5 {[%clk 0:00:54]} 27... Qc5 {[%clk 0:00:03.8]} 28.
Neg3 {[%clk 0:00:49]} 28... Qf2 {[%clk 0:00:02.6]} 29. Nh5 {[%clk 0:00:47.7]}
29... Rxf5 {[%clk 0:00:02.1]} 30. Bxf5 {[%clk 0:00:46.1]} 30... e4 {[%clk
0:00:01.9]} 31. dxe4 {[%clk 0:00:45]} 31... Rd8 {[%clk 0:00:01]} 32. Bxg6 {[%clk
0:00:45]} 32... fxg6 {[%clk 0:00:01.6]} 33. Nf4 {[%clk 0:00:32.9]} 33... g5
{[%clk 0:00:02.1]} 34. Nd5 {[%clk 0:00:06.3]} 34... Rf8 {[%clk 0:00:01.9]} 35.
Rg2 {[%clk 0:00:03.2]} 35... Qe1+ {[%clk 0:00:01.7]} 36. Kh2 {[%clk 0:00:03.9]}
36... Rf1 {[%clk 0:00:01.1]} 37. Qe6+ {[%clk 0:00:02.1]} 37... Kh8 {[%clk
0:00:01]} 38. Qc8+ {[%clk 0:00:02.3]} 38... Kh7 {[%clk 0:00:01.4]} 39. Nf6+
{[%clk 0:00:03.1]} 39... gxf6 {[%clk 0:00:01.4]} 40. Qg4 {[%clk 0:00:03.7]}
40... h5 {[%clk 0:00:01.4]} 41. Qd7+ {[%clk 0:00:04.6]} 41... Kh6 {[%clk
0:00:01.5]} 42. Rf2 {[%clk 0:00:05.3]} 42... Rxf2+ {[%clk 0:00:01.8]} 43. Kh3
{[%clk 0:00:05.7]} 43... Qe3# {[%clk 0:00:02.7]} 0-1

[Event "Early-Titled-Tuesday-Blitz-May-28-2024"]
[Site "Chess.com"]
[Date "2024.05.28"]
[Round "6"]
[White "zajka-molotok"]
[Black "jens1102"]
[Result "0-1"]
[WhiteElo "2533"]
[BlackElo "2714"]
[TimeControl "180+1"]
[EndTime "9:07:38 PDT"]
[Termination "jens1102 won on time"]

1. e4 {[%clk 0:03:00.9]} 1... c5 {[%clk 0:02:53.7]} 2. c3 {[%clk 0:02:59.8]}
2... Nf6 {[%clk 0:02:51.1]} 3. e5 {[%clk 0:02:59.5]} 3... Nd5 {[%clk 0:02:51.7]}
4. Nf3 {[%clk 0:02:59]} 4... Nc6 {[%clk 0:02:52.1]} 5. Bc4 {[%clk 0:02:55.7]}
5... e6 {[%clk 0:02:50.4]} 6. d4 {[%clk 0:02:54.2]} 6... cxd4 {[%clk 0:02:47.9]}
7. cxd4 {[%clk 0:02:55.1]} 7... d6 {[%clk 0:02:47.6]} 8. O-O {[%clk 0:02:53.3]}
8... dxe5 {[%clk 0:02:46.2]} 9. dxe5 {[%clk 0:02:51.4]} 9... Be7 {[%clk
0:02:46.9]} 10. Qe2 {[%clk 0:02:39.8]} 10... O-O {[%clk 0:02:35.1]} 11. Rd1
{[%clk 0:02:39]} 11... Qa5 {[%clk 0:02:33]} 12. Bd2 {[%clk 0:02:32.5]} 12... Qb6
{[%clk 0:02:31.4]} 13. Nc3 {[%clk 0:02:29.2]} 13... Nxc3 {[%clk 0:02:27.4]} 14.
Bxc3 {[%clk 0:02:28.7]} 14... Bb4 {[%clk 0:02:24.5]} 15. Rac1 {[%clk 0:02:24.2]}
15... a5 {[%clk 0:02:18.9]} 16. Bd3 {[%clk 0:02:18.5]} 16... Bxc3 {[%clk
0:02:13.1]} 17. Rxc3 {[%clk 0:02:19.4]} 17... g6 {[%clk 0:02:10.9]} 18. h4
{[%clk 0:02:14.5]} 18... a4 {[%clk 0:02:08]} 19. h5 {[%clk 0:02:12.9]} 19... Ra5
{[%clk 0:02:08.3]} 20. Rd2 {[%clk 0:01:25.9]} 20... Rc5 {[%clk 0:01:56.1]} 21.
Rxc5 {[%clk 0:01:18.6]} 21... Qxc5 {[%clk 0:01:57]} 22. Qe4 {[%clk 0:01:16.9]}
22... Rd8 {[%clk 0:01:53.9]} 23. Qf4 {[%clk 0:01:13.7]} 23... Nd4 {[%clk
0:01:40.6]} 24. Ng5 {[%clk 0:01:06.5]} 24... Qe7 {[%clk 0:01:18.3]} 25. hxg6
{[%clk 0:00:57.9]} 25... fxg6 {[%clk 0:01:18.9]} 26. Ne4 {[%clk 0:00:47.8]}
26... Nf5 {[%clk 0:01:11.1]} 27. Nf6+ {[%clk 0:00:46.6]} 27... Kh8 {[%clk
0:01:11.6]} 28. Bxf5 {[%clk 0:00:45.8]} 28... exf5 {[%clk 0:01:05.1]} 29. Rxd8+
{[%clk 0:00:34.8]} 29... Qxd8 {[%clk 0:01:06]} 30. Qh4 {[%clk 0:00:28.9]} 30...
Qe7 {[%clk 0:01:02.9]} 31. Qc4 {[%clk 0:00:21.9]} 31... Be6 {[%clk 0:00:51.7]}
32. Qxa4 {[%clk 0:00:22]} 32... Kg7 {[%clk 0:00:47]} 33. Qa8 {[%clk 0:00:17.8]}
33... Bc4 {[%clk 0:00:40.8]} 34. Qb8 {[%clk 0:00:10.6]} 34... Bxa2 {[%clk
0:00:36.6]} 35. Ne8+ {[%clk 0:00:09.6]} 35... Kh6 {[%clk 0:00:35.4]} 36. f4
{[%clk 0:00:06.2]} 36... Qc5+ {[%clk 0:00:32.1]} 37. Kh2 {[%clk 0:00:04.4]}
37... Qf2 {[%clk 0:00:28.2]} 38. e6 {[%clk 0:00:02.2]} 38... Bxe6 {[%clk
0:00:24.7]} 39. Qe5 {[%clk 0:00:01.5]} 39... Qh4+ {[%clk 0:00:07.9]} 40. Kg1
{[%clk 0:00:01.1]} 40... Qe7 {[%clk 0:00:08.8]} 41. Qxf5 {[%clk 0:00:01.2]}
41... gxf5 {[%clk 0:00:08.3]} 0-1

[Event "Early-Titled-Tuesday-Blitz-May-28-2024"]
[Site "Chess.com"]
[Date "2024.05.28"]
[Round "6"]
[White "ljuks68"]
[Black "GrotBchess"]
[Result "1-0"]
[WhiteElo "2423"]
[BlackElo "2585"]
[TimeControl "180+1"]
[EndTime "9:07:38 PDT"]
[Termination "ljuks68 won by checkmate"]

1. e4 {[%clk 0:02:50]} 1... c5 {[%clk 0:02:57.9]} 2. Nf3 {[%clk 0:02:49.9]} 2...
e6 {[%clk 0:02:57.8]} 3. d4 {[%clk 0:02:50.5]} 3... cxd4 {[%clk 0:02:57.8]} 4.
Nxd4 {[%clk 0:02:51.2]} 4... Nf6 {[%clk 0:02:58.1]} 5. Nc3 {[%clk 0:02:51.5]}
5... Nc6 {[%clk 0:02:57.8]} 6. Nxc6 {[%clk 0:02:50.9]} 6... bxc6 {[%clk
0:02:58.7]} 7. e5 {[%clk 0:02:50.6]} 7... Nd5 {[%clk 0:02:58.9]} 8. Ne4 {[%clk
0:02:50.6]} 8... Bb7 {[%clk 0:02:59]} 9. Be2 {[%clk 0:02:47.2]} 9... c5 {[%clk
0:02:58.2]} 10. O-O {[%clk 0:02:41.2]} 10... Qc7 {[%clk 0:02:56.2]} 11. f4
{[%clk 0:02:38.1]} 11... c4 {[%clk 0:02:55.6]} 12. Bf3 {[%clk 0:02:34.5]} 12...
Bc5+ {[%clk 0:02:52.8]} 13. Nxc5 {[%clk 0:02:30.5]} 13... Qxc5+ {[%clk
0:02:53.3]} 14. Kh1 {[%clk 0:02:30.8]} 14... O-O {[%clk 0:02:52.4]} 15. c3
{[%clk 0:02:00.7]} 15... Rab8 {[%clk 0:02:49.8]} 16. Qe2 {[%clk 0:01:55.1]}
16... Bc6 {[%clk 0:02:37.7]} 17. Be4 {[%clk 0:01:52.9]} 17... f5 {[%clk
0:02:35.9]} 18. exf6 {[%clk 0:01:51.3]} 18... Nxf6 {[%clk 0:02:35.9]} 19. Be3
{[%clk 0:01:49.7]} 19... Qb5 {[%clk 0:02:33.5]} 20. Bxc6 {[%clk 0:01:49.7]}
20... Qxc6 {[%clk 0:02:33.9]} 21. Bd4 {[%clk 0:01:46.5]} 21... a6 {[%clk
0:02:22.1]} 22. Rae1 {[%clk 0:01:44]} 22... Rb5 {[%clk 0:02:21.9]} 23. Qf2
{[%clk 0:01:12.4]} 23... Rf5 {[%clk 0:02:13.1]} 24. Qg3 {[%clk 0:01:02.4]} 24...
Rf7 {[%clk 0:02:09.7]} 25. Re5 {[%clk 0:00:59.8]} 25... Ne4 {[%clk 0:02:05.7]}
26. Qg4 {[%clk 0:00:50.8]} 26... d5 {[%clk 0:02:01.9]} 27. Rxf5 {[%clk
0:00:49.5]} 27... exf5 {[%clk 0:02:02]} 28. Qe2 {[%clk 0:00:46.3]} 28... Rb7
{[%clk 0:02:00.5]} 29. g4 {[%clk 0:00:46.2]} 29... Qe6 {[%clk 0:01:58.6]} 30.
gxf5 {[%clk 0:00:45.7]} 30... Qxf5 {[%clk 0:01:58.7]} 31. Qg2 {[%clk 0:00:41.9]}
31... g6 {[%clk 0:01:57]} 32. Be5 {[%clk 0:00:31.7]} 32... Nc5 {[%clk
0:01:44.8]} 33. Qxd5+ {[%clk 0:00:26.4]} 33... Rf7 {[%clk 0:01:32.3]} 34. Qxc5
{[%clk 0:00:26.1]} 34... Qe4+ {[%clk 0:01:32.2]} 35. Kg1 {[%clk 0:00:25.6]}
35... Qe2 {[%clk 0:01:26.3]} 36. Qd5 {[%clk 0:00:19.8]} 36... Qe3+ {[%clk
0:01:22.5]} 37. Kg2 {[%clk 0:00:17.7]} 37... h5 {[%clk 0:01:17.6]} 38. Qxc4
{[%clk 0:00:16.2]} 38... h4 {[%clk 0:01:14.2]} 39. h3 {[%clk 0:00:14.3]} 39...
Qg3+ {[%clk 0:01:13.5]} 40. Kh1 {[%clk 0:00:14.6]} 40... Qxh3+ {[%clk
0:01:13.6]} 41. Kg1 {[%clk 0:00:15.1]} 41... Qg3+ {[%clk 0:01:13.7]} 42. Kh1
{[%clk 0:00:15.6]} 42... Qh3+ {[%clk 0:01:14.2]} 43. Kg1 {[%clk 0:00:16.1]}
43... Qg3+ {[%clk 0:01:11.7]} 44. Kh1 {[%clk 0:00:16.4]} 44... h3 {[%clk
0:01:03]} 45. Qe2 {[%clk 0:00:10.2]} 45... Rd7 {[%clk 0:00:55.9]} 46. Rg1 {[%clk
0:00:09.2]} 46... Qh4 {[%clk 0:00:49.9]} 47. Rxg6+ {[%clk 0:00:08]} 47... Kh7
{[%clk 0:00:50.1]} 48. Rg4 {[%clk 0:00:08.4]} 48... Qe7 {[%clk 0:00:19.1]} 49.
Qe4+ {[%clk 0:00:07.2]} 49... Kh6 {[%clk 0:00:18]} 50. Qg6# {[%clk 0:00:07.2]}
1-0

[Event "Early-Titled-Tuesday-Blitz-May-28-2024"]
[Site "Chess.com"]
[Date "2024.05.28"]
[Round "6"]
[White "WindWhistler11"]
[Black "MrLion3000"]
[Result "0-1"]
[WhiteElo "2544"]
[BlackElo "2778"]
[TimeControl "180+1"]
[EndTime "9:07:40 PDT"]
[Termination "MrLion3000 won on time"]

1. Nf3 {[%clk 0:03:00.9]} 1... d5 {[%clk 0:02:57.7]} 2. g3 {[%clk 0:03:01.1]}
2... Nf6 {[%clk 0:02:57.5]} 3. c4 {[%clk 0:03:01]} 3... e6 {[%clk 0:02:56.7]} 4.
Bg2 {[%clk 0:03:00.7]} 4... d4 {[%clk 0:02:57]} 5. e3 {[%clk 0:03:00.3]} 5... c5
{[%clk 0:02:57.2]} 6. exd4 {[%clk 0:03:00.5]} 6... cxd4 {[%clk 0:02:57]} 7. O-O
{[%clk 0:03:01.4]} 7... Nc6 {[%clk 0:02:57.2]} 8. d3 {[%clk 0:03:01.2]} 8... Be7
{[%clk 0:02:56.5]} 9. Re1 {[%clk 0:03:01.9]} 9... Nd7 {[%clk 0:02:56.8]} 10. Na3
{[%clk 0:02:48.1]} 10... e5 {[%clk 0:02:53.2]} 11. Nc2 {[%clk 0:02:41.7]} 11...
a5 {[%clk 0:02:51.2]} 12. Rb1 {[%clk 0:02:26]} 12... O-O {[%clk 0:02:46.2]} 13.
a3 {[%clk 0:02:18.4]} 13... a4 {[%clk 0:02:45.6]} 14. Bd2 {[%clk 0:02:18.3]}
14... f6 {[%clk 0:02:42.9]} 15. Bb4 {[%clk 0:02:13.8]} 15... Kh8 {[%clk
0:02:03.7]} 16. Nh4 {[%clk 0:01:41.1]} 16... Nxb4 {[%clk 0:01:53.2]} 17. axb4
{[%clk 0:01:24.2]} 17... f5 {[%clk 0:01:52.2]} 18. Qh5 {[%clk 0:01:15.9]} 18...
Bxh4 {[%clk 0:01:49.9]} 19. Qxh4 {[%clk 0:01:16]} 19... Qxh4 {[%clk 0:01:46.3]}
20. gxh4 {[%clk 0:01:16]} 20... Ra6 {[%clk 0:01:42.7]} 21. f4 {[%clk 0:01:04]}
21... exf4 {[%clk 0:01:08.1]} 22. Nxd4 {[%clk 0:01:02.6]} 22... Rg6 {[%clk
0:00:54]} 23. Ne6 {[%clk 0:00:58.2]} 23... f3 {[%clk 0:00:38.5]} 24. Nxf8 {[%clk
0:00:57]} 24... Rxg2+ {[%clk 0:00:38.5]} 25. Kf1 {[%clk 0:00:56.4]} 25... Nf6
{[%clk 0:00:27.2]} 26. Re3 {[%clk 0:00:42.5]} 26... Rxh2 {[%clk 0:00:23.9]} 27.
Rbe1 {[%clk 0:00:39.3]} 27... Kg8 {[%clk 0:00:14.2]} 28. Ne6 {[%clk 0:00:34.4]}
28... Bxe6 {[%clk 0:00:14.3]} 29. Rxf3 {[%clk 0:00:19.7]} 29... Kf7 {[%clk
0:00:14.1]} 30. Re5 {[%clk 0:00:18.8]} 30... Rxb2 {[%clk 0:00:12.1]} 31. Rb5
{[%clk 0:00:19.1]} 31... a3 {[%clk 0:00:08.9]} 32. Rxb7+ {[%clk 0:00:18.7]}
32... Kg6 {[%clk 0:00:09.6]} 33. Ra7 {[%clk 0:00:16.7]} 33... a2 {[%clk
0:00:09.7]} 34. Rg3+ {[%clk 0:00:15.6]} 34... Ng4 {[%clk 0:00:09.3]} 35. Rg1
{[%clk 0:00:02]} 35... f4 {[%clk 0:00:04.3]} 36. Ra6 {[%clk 0:00:02.3]} 36...
Kf5 {[%clk 0:00:04.4]} 37. Ra5+ {[%clk 0:00:02.8]} 37... Kf6 {[%clk 0:00:04.7]}
38. Ra4 {[%clk 0:00:02]} 38... f3 {[%clk 0:00:03.8]} 0-1